lending/lending_fUSD_20250917
["ID","MTS","AMOUNT","RATE_DAILY","PERIOD"]
[385901492,1758120632954,-137.89329135,0.00026135,2]
[385901493,1758120632987,-362.10670865,0.00026135,2]
[385901494,1758120633000,-150.0,0.00026135,2]
[385901495,1758120633011,-150.0,0.00026164,2]
[385901496,1758120633021,-341.07934348,0.00026166,2]
[385901497,1758120633031,-434.70896718,0.00026168,2]
[385901498,1758120633042,-263.78349859,0.00026169,2]
[385901499,1758120633061,-264.55509229,0.00026169,2]
[385901500,1758120633070,-621.96821458,0.00026171,2]
[385901501,1758120633080,-188.90669313,0.00026173,2]
[385901502,1758120633092,-311.09330687,0.00026173,2]
[385901503,1758120633102,-715.59783827,0.00026173,2]
[385901504,1758120633112,-809.22746197,0.00026175,2]
[385901505,1758120633122,-14768.7462795,0.00026177,2]
[385901506,1758120633131,-5000.0,0.00026178,2]
[385901507,1758120633141,-400.0,0.00026178,2]
[385901508,1758120633151,-544.22,0.00026179,2]
[385901509,1758120633161,-826.08,0.00026179,2]
[385901510,1758120633171,-154.329498,0.00026179,7]
[385901511,1758120633181,-400.0,0.00026179,2]
[385901512,1758120633190,-184.697263,0.00026179,7]
[385901513,1758120633200,-184.697263,0.00026179,7]
[385901514,1758120633209,-184.697263,0.00026179,7]
[385901515,1758120633219,-184.697263,0.00026179,7]
[385901516,1758120633228,-803.46,0.00026179,2]
[385901517,1758120633238,-481.02,0.00026179,2]
[385901518,1758120633248,-400.0,0.00026179,2]
[385901519,1758120633258,-400.0,0.00026179,2]
[385901520,1758120633268,-400.0,0.00026179,2]
[385901521,1758120633278,-400.0,0.00026179,2]
[385901522,1758120633288,-742.88,0.00026179,2]
[385901523,1758120633297,-512.22,0.00026179,2]
[385901524,1758120633307,-79022.7284041,0.00026179,2]
[385901525,1758120633316,-4143.5914581,0.00026179,2]
[385901526,1758120633329,-686.36343726,0.00026179,2]
[385901527,1758120633341,-2689.06279724,0.00026179,2]
[385901528,1758120633367,-3277.29660856,0.00026179,2]
[385901529,1758120633379,-718.78087629,0.00026179,2]
[385901530,1758120633408,-24236.66491207,0.00026179,2]
[385901531,1758120633730,-11259.75563633,0.00026179,2]
[385901537,1758120637517,-688.29,0.00026178,2]
[385901538,1758120637527,-151.0,0.00026179,7]
[385901539,1758120637538,-400.0,0.00026179,2]
[385901540,1758120637547,-1215.77197969,0.00026179,2]
[385901541,1758120637728,-542.46609112,0.00026179,2]
[385901542,1758120637740,-2506.0,0.00026179,2]
[385901543,1758120637751,-1459.50309689,0.00026179,2]
[385901544,1758120637762,-6721.79276997,0.00026179,2]
[385901545,1758120637774,-11725.22580748,0.00026179,2]
[385901546,1758120637785,-17430.2022061,0.00026179,2]
[385901547,1758120637795,-150.89,0.00026179,2]
[385901548,1758120637805,-226.21804364,0.00026179,2]
[385901549,1758120637814,-53763.25770626,0.00026179,3]
[385901550,1758120637825,-747.00265292,0.00026179,3]
[385901595,1758120639755,-151.0,0.00026179,7]
[385901596,1758120639765,-2983.41768548,0.00026179,3]
[385901597,1758120639797,-22145.73228858,0.00026179,3]
[385901686,1758120641258,-400.53706576,0.00026179,2]
[385901687,1758120641268,-44.01293924,0.00026179,3]
[385901688,1758120641280,-3430.1949992,0.00026179,3]
[385901707,1758120642839,-378.71437743,0.00026179,2]
[385901708,1758120642849,-151.0,0.00026179,7]
[385901709,1758120642859,-240.41699797,0.00026179,7]
[385901729,1758120645587,-1078.97384203,0.00026179,7]
[385901730,1758120645600,-1319.39084,0.00026179,7]
[385901731,1758120645614,-855.38,0.00026179,2]
[385901732,1758120645627,-1319.39084,0.00026179,7]
[385901733,1758120645640,-939.86447797,0.00026179,3]
[385901734,1758120645684,-502.47039619,0.00026179,3]
[385901735,1758120645779,-106232.84758123,0.00026179,3]
[385901736,1758120645793,-105363.637872,0.0002618,2]
[385901737,1758120645806,-103381.223957,0.0002618,2]
[385901738,1758120645819,-28371.52789255,0.0002618,2]
[385901739,1758120645833,-184.697263,0.0002618,7]
[385901740,1758120645845,-184.697263,0.0002618,7]
[385901741,1758120645859,-184.697263,0.0002618,7]
[385901742,1758120645872,-184.697263,0.0002618,7]
[385901743,1758120645885,-151.0,0.0002618,7]
[385901744,1758120645898,-151.0,0.0002618,7]
[385901745,1758120645910,-151.0,0.0002618,7]
[385901746,1758120645923,-211.179964,0.0002618,7]
[385901747,1758120645937,-151.0,0.0002618,7]
[385901748,1758120645949,-1319.39084,0.0002618,7]
[385901749,1758120645963,-1319.39084,0.0002618,7]
[385901750,1758120645977,-1319.39084,0.0002618,7]
[385901751,1758120645990,-1319.39084,0.0002618,7]
[385901752,1758120646004,-118534.092606,0.0002618,2]
[385901753,1758120646016,-59207.11467855,0.0002618,2]
[385901754,1758120646034,-1179.01610272,0.0002618,2]
[385901757,1758120646077,-4240.45164835,0.0002618,2]
[385901820,1758120691548,2255.00472002,0.00030137,120]
[385901821,1758120749564,2000.0,0.00026377,120]
[385901822,1758120749864,2000.0,0.00026377,120]
[385901823,1758120750175,861.651,0.00026377,120]
[385901982,1758121831858,-312.0,0.000232,5]
[385901983,1758121831868,-248.48991014,0.00023647,2]
[385901984,1758121831878,-5.13733915,0.00024446,2]
[385901985,1758121831972,-672.33266085,0.00024446,2]
[385901986,1758121831983,-22.58733915,0.00024446,2]
[385901987,1758121832088,-396.94443762,0.00024446,2]
[385901988,1758121832101,-80.46822323,0.00024446,2]
[385901989,1758121832111,-523.4,0.00024859,2]
[385901990,1758121832121,-300.0,0.00024884,2]
[385901991,1758121832130,-300.0,0.00024884,2]
[385901992,1758121832140,-576.27567413,0.00024884,2]
[385902004,1758121832853,-623.72432587,0.00024884,2]
[385902005,1758121832866,-151.0,0.00024885,2]
[385902006,1758121832886,-151.0,0.00024885,2]
[385902007,1758121832900,-151.0,0.00024885,2]
[385902008,1758121832909,-151.0,0.00024885,2]
[385902009,1758121832919,-151.0,0.00024885,2]
[385902010,1758121832929,-151.0,0.00024885,2]
[385902011,1758121832939,-151.0,0.00024885,2]
[385902012,1758121832948,-151.0,0.00024885,2]
[385902013,1758121833236,-151.0,0.00024885,2]
[385902014,1758121833246,-151.0,0.00024885,2]
[385902015,1758121833257,-89.27091457,0.00024885,2]
[385902030,1758121837899,-61.72908543,0.00024885,2]
[385902031,1758121837909,-151.0,0.00024885,2]
[385902032,1758121837919,-151.0,0.00024885,2]
[385902033,1758121837929,-151.0,0.00024885,2]
[385902034,1758121837939,-151.0,0.00024885,2]
[385902035,1758121837948,-151.0,0.00024885,2]
[385902036,1758121837958,-151.0,0.00024885,2]
[385902037,1758121837968,-151.0,0.00024885,2]
[385902038,1758121837977,-151.0,0.00024885,2]
[385902039,1758121837986,-151.0,0.00024885,2]
[385902040,1758121837996,-18054.87421277,0.000249,2]
[385902042,1758121838006,-322.6107,0.00025018,2]
[385902044,1758121838015,-248.71531821,0.00025018,2]
[385902046,1758121838025,-2275.83,0.0002502,2]
[385902048,1758121838035,-266.23,0.00025068,2]
[385902050,1758121838044,-473.23,0.00025068,2]
[385902052,1758121838054,-248.34,0.00025164,2]
[385902054,1758121838063,-150.0,0.00025169,7]
[385902055,1758121838072,-1647.0,0.000252,2]
[385902056,1758121838082,-1022.88131801,0.00025585,2]
[385902057,1758121838092,-150.0,0.000256,2]
[385902059,1758121838101,-303.98,0.000256,2]
[385902061,1758121838113,-394.37,0.000256,2]
[385902064,1758121838122,-1192.69,0.000256,2]
[385902066,1758121838136,-831.04,0.000256,2]
[385902068,1758121838146,-1192.69,0.000256,2]
[385902070,1758121838156,-1192.69,0.000256,2]
[385902072,1758121838166,-500.0,0.000256,9]
[385902074,1758121838176,-1100.0,0.000257,9]
[385902076,1758121838185,-1648.0,0.000258,2]
[385902078,1758121838195,-397.0,0.000258,2]
[385902080,1758121838205,-1600.0,0.000258,9]
[385902082,1758121838215,-297.93,0.00025878,2]
[385902084,1758121838225,-2200.0,0.000259,9]
[385902086,1758121838235,-297.88,0.00025957,2]
[385902088,1758121838245,-640.43211716,0.00026,2]
[385902090,1758121838255,-297.88,0.00026,2]
[385902092,1758121838264,-160.0,0.00026061,2]
[385902094,1758121838274,-516.07479255,0.00026061,2]
[385902097,1758121838284,-160.0,0.00026061,2]
[385902099,1758121838294,-160.0,0.00026061,2]
[385902101,1758121838303,-2500.0,0.00026076,2]
[385902103,1758121838313,-13414.86648279,0.00026077,2]
[385902105,1758121838323,-348.48386541,0.00026078,2]
[385902107,1758121838332,-923.58060996,0.00026078,2]
[385902109,1758121838344,-1000.0,0.0002608,2]
[385902111,1758121838354,-6049.66330735,0.00026085,2]
[385902113,1758121838365,-4723.4765,0.00026086,2]
[385902115,1758121838375,-5000.0,0.00026086,2]
[385902117,1758121838384,-248.34,0.00026107,2]
[385902119,1758121838394,-503.54022269,0.00026154,2]
[385902121,1758121838404,-2358.99,0.00026158,2]
[385902123,1758121838413,-2358.99,0.00026159,2]
[385902125,1758121838423,-297.88,0.0002616,2]
[385902127,1758121838433,-500.0,0.00026163,2]
[385902129,1758121838443,-150.0,0.00026163,2]
[385902131,1758121838453,-150.0,0.00026163,2]
[385902134,1758121838463,-221.67907521,0.00026163,2]
[385902136,1758121838472,-150.0,0.00026163,2]
[385902138,1758121838481,-150.0,0.00026163,2]
[385902140,1758121838496,-500.0,0.00026163,2]
[385902142,1758121838505,-500.0,0.00026163,2]
[385902144,1758121838515,-546.99,0.00026167,2]
[385902146,1758121838527,-832.39,0.00026167,2]
[385902148,1758121838537,-400.0,0.00026167,2]
[385902150,1758121838546,-460.98,0.00026167,2]
[385902152,1758121838555,-769.98,0.00026167,2]
[385902154,1758121838567,-400.0,0.00026167,2]
[385902156,1758121838577,-400.0,0.00026167,2]
[385902158,1758121838586,-659.61,0.00026167,2]
[385902160,1758121838597,-400.0,0.00026167,2]
[385902161,1758121838607,-400.0,0.00026167,2]
[385902162,1758121838617,-304.66290478,0.00026167,2]
[385902163,1758121838626,-400.0,0.00026167,2]
[385902164,1758121838636,-490.88,0.00026167,2]
[385902165,1758121838645,-23382.8183893,0.00026167,2]
[385902166,1758121838656,-265.1000642,0.00026168,2]
[385902167,1758121838665,-151.0,0.00026168,7]
[385902168,1758121838675,-151.0,0.00026168,7]
[385902169,1758121838685,-151.0,0.00026168,7]
[385902170,1758121838694,-44550.40146713,0.00026168,2]
[385902241,1758121839844,-302.0,0.00026167,2]
[385902243,1758121839857,-409.92,0.00026167,2]
[385902245,1758121839867,-151.0,0.00026168,7]
[385902247,1758121839876,-25235.80789747,0.00026168,2]
[385902248,1758121839888,-477.55546069,0.00026168,2]
[385902249,1758121839970,-9422.58120004,0.00026168,2]
[385902655,1758121845862,-541.99711194,0.00026167,2]
[385902656,1758121845874,-403.92076259,0.00026167,2]
[385902657,1758121845885,-400.0,0.00026167,2]
[385902658,1758121845896,-270.93729536,0.00026167,2]
[385902676,1758121863231,195.0,0.00028676,120]
[385902677,1758121863295,195.0,0.00026118,120]
[385902678,1758121864740,2500.0,0.00028676,120]
[385902679,1758121864784,2500.0,0.00026118,120]
[385902680,1758121864860,844.65235262,0.00026148,120]
[385902681,1758121866709,300.0,0.00028676,120]
[385902682,1758121866835,276.71323559,0.00026118,120]
[385902683,1758121867813,300.0,0.00028676,120]
[385902684,1758121867909,300.0,0.00026118,120]
[385902685,1758121868027,300.0,0.00026148,120]
[385902686,1758121868164,300.0,0.00026148,120]
[385902733,1758122140143,151.0,0.00021459,2]
[385902734,1758122160372,150.12,0.00012565,2]
[385902735,1758122160595,150.12,0.00015706,2]
[385902736,1758122160820,150.12,0.00018847,2]
[385902737,1758122161042,150.12,0.00021989,2]
[385902738,1758122171232,151.0,0.00021565,2]
[385902765,1758122338961,50000.0,0.00030137,120]
[385902768,1758122368289,300.0,0.00021988,2]
[385902777,1758122420941,50000.0,0.00030137,120]
[385902778,1758122432354,300.0,0.00021988,2]
[385902782,1758122493784,166.0,0.000219,4]
[385902792,1758122502445,166.0,0.000219,4]
[385902804,1758122707304,765.52,0.0002,2]
[385902925,1758122888179,15793.09731279,0.0002,14]
[385902946,1758123032120,-454.37806937,0.00019999,2]
[385902947,1758123032132,-745.62193063,0.00019999,2]
[385902948,1758123032144,-222.72759682,0.00019999,2]
[385902949,1758123032156,-77.27240318,0.00019999,2]
[385902950,1758123032165,-3051.9132425,0.0002,2]
[385902951,1758123032177,-13501.15698077,0.0002,2]
[385902952,1758123032189,-855.22235336,0.0002,2]
[385902953,1758123032201,-31522.35975,0.0002,2]
[385902954,1758123032228,-2305.56717806,0.0002,2]
[385902955,1758123032238,-1680.0,0.00021881,2]
[385902956,1758123032247,-300.0,0.00023086,7]
[385902957,1758123032257,-667.0,0.00023941,2]
[385902958,1758123032266,-384.0,0.000247,2]
[385902959,1758123032276,-712.76,0.0002479,2]
[385902960,1758123032285,-150.42,0.00024899,2]
[385902961,1758123032295,-1470.26769853,0.000249,2]
[385902962,1758123032306,-609.33306875,0.000249,2]
[385902963,1758123032317,-1452.13380169,0.000249,2]
[385902964,1758123032327,-1258.13801117,0.000249,2]
[385902965,1758123032437,-6254.74895343,0.000249,2]
[385902966,1758123032448,-501.46850775,0.000249,2]
[385902967,1758123032460,-6175.00916271,0.000249,2]
[385902968,1758123032469,-248.71531821,0.00024953,2]
[385902969,1758123032479,-236.61,0.00024967,2]
[385902970,1758123032488,-170.0,0.00025,7]
[385902971,1758123032498,-212.98,0.00025035,2]
[385902972,1758123032508,-185.54,0.00025071,2]
[385902973,1758123032518,-150.0,0.00025124,7]
[385902975,1758123032527,-150.12,0.0002513,2]
[385902977,1758123032537,-250.0,0.00025134,2]
[385902979,1758123032546,-349.9,0.00025278,2]
[385902980,1758123032556,-349.94,0.00025378,2]
[385902981,1758123032565,-200.0,0.000255,9]
[385902982,1758123032573,-186.83193288,0.00025559,2]
[385902983,1758123032585,-1004.41806712,0.00025559,2]
[385902984,1758123032595,-1085.84,0.00025559,2]
[385902985,1758123032604,-152.29,0.00025559,2]
[385902986,1758123032613,-258.08935558,0.00025559,2]
[385902987,1758123032624,-285.16064442,0.00025559,2]
[385902988,1758123032634,-680.9296905,0.00025559,2]
[385902989,1758123032645,-691.40426648,0.00025559,2]
[385902990,1758123032672,-574.35,0.00025559,2]
[385902991,1758123032683,-438.69604302,0.00025559,2]
[385902992,1758123032693,-543.25,0.00025559,2]
[385902993,1758123032703,-411.23,0.00025559,2]
[385902994,1758123032712,-543.25,0.00025559,2]
[385902995,1758123032721,-1086.17,0.00025559,2]
[385902996,1758123032731,-543.25,0.00025559,2]
[385902997,1758123032739,-543.25,0.00025559,2]
[385902998,1758123032749,-159.55,0.00025559,2]
[385902999,1758123032759,-500.0,0.000256,9]
[385903000,1758123032769,-542.07,0.00025644,2]
[385903001,1758123032781,-333.0,0.00025644,2]
[385903002,1758123032791,-1192.01,0.00025644,2]
[385903003,1758123032800,-800.0,0.000257,9]
[385903004,1758123032809,-30.40120796,0.00025735,2]
[385903005,1758123032821,-137.59879204,0.00025735,2]
[385903006,1758123032830,-178.76,0.0002579,2]
[385903007,1758123032839,-1100.0,0.000258,9]
[385903008,1758123032849,-178.72,0.00025868,2]
[385903009,1758123032858,-376.0,0.0002588,2]
[385903010,1758123032868,-38.28120796,0.0002589,7]
[385903011,1758123032881,-131.71879204,0.0002589,7]
[385903012,1758123032890,-618.40611469,0.000259,9]
[385903013,1758123038062,-400.0,0.000259,9]
[385903014,1758123038074,-381.59388531,0.000259,9]
[385903015,1758123038084,-313.63547886,0.00025966,2]
[385903016,1758123038094,-757.2442114,0.00025966,2]
[385903017,1758123038103,-2122.8695,0.00025967,2]
[385903018,1758123038115,-2238.64001973,0.00025968,2]
[385903019,1758123038128,-509.26836759,0.00025968,2]
[385903191,1758123046189,-379.59051729,0.00025968,2]
[385903192,1758123046201,-3457.79437244,0.00025968,2]
[385903193,1758123046225,-4048.53483206,0.00025968,2]
[385903194,1758123046242,-2463.85186581,0.00025968,2]
[385903195,1758123046252,-160.0,0.00025974,2]
[385903196,1758123046261,-160.0,0.00025974,2]
[385903197,1758123046270,-5000.0,0.00025976,2]
[385903198,1758123046280,-322.6107,0.00025984,2]
[385903199,1758123046290,-151.0,0.00025984,2]
[385903200,1758123046299,-151.0,0.00025984,2]
[385903201,1758123046309,-151.0,0.00025984,2]
[385903202,1758123046318,-151.0,0.00025984,2]
[385903203,1758123046327,-151.0,0.00025984,2]
[385903204,1758123046337,-151.0,0.00025984,2]
[385903205,1758123046346,-151.0,0.00025984,2]
[385903206,1758123046355,-151.0,0.00025984,2]
[385903207,1758123046364,-151.0,0.00025984,2]
[385903208,1758123046374,-151.0,0.00025984,2]
[385903209,1758123046384,-151.0,0.00025984,2]
[385903210,1758123046393,-151.0,0.00025984,2]
[385903211,1758123046402,-151.0,0.00025984,2]
[385903212,1758123046411,-151.0,0.00025984,2]
[385903213,1758123046420,-151.0,0.00025984,2]
[385903214,1758123046430,-151.0,0.00025984,2]
[385903215,1758123046439,-151.0,0.00025984,2]
[385903216,1758123046448,-151.0,0.00025984,2]
[385903217,1758123046457,-151.0,0.00025984,2]
[385903218,1758123046466,-151.0,0.00025984,2]
[385903219,1758123046476,-151.0,0.00025984,2]
[385903220,1758123046485,-14055.4703042,0.00026,2]
[385903221,1758123046495,-1925.24,0.00026,2]
[385903222,1758123046504,-185.54,0.00026011,2]
[385903223,1758123046513,-168.0,0.00026015,2]
[385903224,1758123046522,-178.72,0.0002605,2]
[385903226,1758123046531,-400.0,0.00026065,2]
[385903228,1758123046541,-400.0,0.00026065,2]
[385903230,1758123046551,-400.0,0.00026065,2]
[385903232,1758123046560,-400.0,0.00026065,2]
[385903234,1758123046569,-664.65,0.00026065,2]
[385903236,1758123046579,-618.02,0.00026065,2]
[385903238,1758123046588,-4136.37712998,0.00026065,2]
[385903243,1758123046627,-450.53713848,0.00026065,2]
[385903245,1758123046638,-12109.25533916,0.00026065,2]
[385903489,1758123711064,1000.0,0.00030137,120]
[385903493,1758123722447,1000.0,0.00030137,120]
[385903494,1758123733047,1000.0,0.00030137,120]
[385903513,1758123743968,1000.0,0.00030137,120]
[385903518,1758123764915,1769.0,0.00030137,120]
[385903624,1758124232307,-1200.0,0.00019999,2]
[385903625,1758124232317,-250.0,0.0002,2]
[385903626,1758124232327,-42000.33884638,0.0002,5]
[385903627,1758124232338,-75028.39315362,0.0002,5]
[385903628,1758124232347,-257.58133317,0.0002,2]
[385903629,1758124232357,-480.0,0.00021881,2]
[385903630,1758124232367,-250.0,0.00021999,2]
[385903631,1758124232377,-5513.0,0.000246,5]
[385903632,1758124232386,-200.0,0.00024704,2]
[385903633,1758124232395,-317.05,0.00024829,2]
[385903634,1758124232405,-612.08306175,0.00024864,2]
[385903635,1758124232415,-670.58624095,0.00024885,2]
[385903636,1758124232425,-248.71531821,0.00024885,2]
[385903637,1758124232434,-151.0,0.00024885,2]
[385903638,1758124232443,-177.62542427,0.00024885,2]
[385903639,1758124232453,-151.0,0.00024885,2]
[385903640,1758124232462,-151.0,0.00024885,2]
[385903641,1758124232472,-277.68091299,0.00024885,2]
[385903642,1758124232482,-322.6107,0.00024885,2]
[385903643,1758124232491,-17012.25523584,0.000249,2]
[385903644,1758124232501,-186.47,0.00024938,2]
[385903645,1758124232510,-150.0,0.00024978,2]
[385903646,1758124232520,-170.0,0.00025,2]
[385903647,1758124232529,-401.59,0.00025031,2]
[385903648,1758124232539,-150.0,0.00025031,7]
[385903649,1758124232549,-12572.72494434,0.00025041,2]
[385903650,1758124232558,-666.0,0.00025042,3]
[385903651,1758124232569,-344.0,0.00025069,2]
[385903652,1758124232580,-9629.50199215,0.00025089,3]
[385903656,1758124232611,-2214.2,0.00025089,3]
[385903959,1758124239565,-1760.96848973,0.00025089,3]
[385903963,1758124239739,-7681.27684132,0.00025089,3]
[385904014,1758124240292,-1159.2,0.00025089,3]
[385904015,1758124240466,-4402.9,0.00025089,3]
[385904067,1758124243434,-296.07362008,0.00025089,3]
[385904086,1758124246138,-739.59933752,0.00025089,3]
[385904105,1758124246866,-3630.12756663,0.00025089,3]
[385904106,1758124246880,-2256.35399188,0.00025089,3]
[385904107,1758124246893,-61991.35883029,0.00025089,3]
[385904108,1758124246903,-14439.65039755,0.000251,2]
[385904109,1758124246913,-1086.5,0.00025178,2]
[385904110,1758124246922,-305.71,0.00025178,2]
[385904111,1758124246933,-460.14,0.00025278,2]
[385904112,1758124246943,-348.96,0.00025278,2]
[385904113,1758124246953,-349.72,0.00025278,2]
[385904114,1758124246963,-410.6,0.00025278,2]
[385904115,1758124246973,-166.91,0.00025278,2]
[385904116,1758124246982,-1191.66,0.00025278,2]
[385904117,1758124246993,-344.0,0.00025291,7]
[385904118,1758124247003,-346.0,0.00025299,2]
[385904119,1758124247013,-1061.03185938,0.00025394,2]
[385904120,1758124247022,-1097.36527751,0.000255,2]
[385904121,1758124247033,-379.0,0.000255,2]
[385904122,1758124247042,-343.0,0.00025663,2]
[385904123,1758124247051,-289.61,0.0002569,2]
[385904124,1758124247063,-1000.0,0.00025766,2]
[385904125,1758124247072,-2500.0,0.00025766,2]
[385904126,1758124247084,-289.59,0.00025767,2]
[385904127,1758124247096,-289.59,0.000258,2]
[385904128,1758124247106,-793.00025937,0.00025855,2]
[385904129,1758124247115,-580.22,0.00025864,2]
[385904130,1758124247125,-1055.51,0.00025864,2]
[385904131,1758124247134,-400.0,0.00025864,2]
[385904132,1758124247143,-956.66,0.00025864,2]
[385904133,1758124247152,-703.78,0.00025864,2]
[385904134,1758124247162,-742.7,0.00025864,2]
[385904135,1758124247172,-981.47,0.00025864,2]
[385904136,1758124247181,-551.79,0.00025864,2]
[385904137,1758124247190,-715.44,0.00025864,2]
[385904138,1758124247199,-506.79,0.00025864,2]
[385904139,1758124247209,-3723.46,0.00025864,2]
[385904140,1758124247219,-400.0,0.00025864,2]
[385904141,1758124247228,-400.0,0.00025864,2]
[385904142,1758124247238,-400.0,0.00025864,2]
[385904143,1758124247248,-545.78,0.00025864,2]
[385904144,1758124247257,-400.0,0.00025864,2]
[385904145,1758124247267,-400.0,0.00025864,2]
[385904146,1758124247277,-524.19,0.00025864,2]
[385904147,1758124247286,-464.51,0.00025864,2]
[385904148,1758124247295,-477.72,0.00025864,2]
[385904149,1758124247305,-400.0,0.00025864,2]
[385904150,1758124247314,-400.0,0.00025864,2]
[385904151,1758124247324,-400.0,0.00025864,2]
[385904152,1758124247333,-1483.13,0.00025864,2]
[385904153,1758124247343,-479.64,0.00025864,2]
[385904154,1758124247352,-400.0,0.00025864,2]
[385904155,1758124247361,-409.95137881,0.00025864,2]
[385904156,1758124247370,-400.0,0.00025864,2]
[385904157,1758124247379,-213.18994792,0.00025865,3]
[385904158,1758124247388,-12866.17597312,0.00025865,2]
[385904159,1758124247398,-213.18994792,0.0002593,2]
[385904160,1758124247408,-154.05358759,0.00025955,2]
[385904161,1758124247416,-323.48731611,0.00025955,2]
[385904162,1758124247426,-18243.65485464,0.00025955,2]
[385904163,1758124247438,-21722.99744401,0.00025955,2]
[385904164,1758124247450,-1692.2736255,0.00025955,2]
[385904165,1758124247462,-2452.25963024,0.00025955,2]
[385904166,1758124247474,-2280.47610914,0.00025955,2]
[385904167,1758124247594,-383.5086327,0.00025955,2]
[385904168,1758124247635,-626.8265502,0.00025955,2]
[385904229,1758124419505,173.14,0.00012467,2]
[385904230,1758124419713,173.14,0.00016623,2]
[385904453,1758124981633,283.98,0.0003013,120]
[385904585,1758125432520,-173.14,0.00020778,2]
[385904586,1758125432530,-150.93494815,0.00021031,2]
[385904587,1758125432660,-1049.06505185,0.00021031,2]
[385904588,1758125432670,-559.10283668,0.00021032,2]
[385904589,1758125432681,-7422.49151216,0.00021032,2]
[385904590,1758125432691,-250.0,0.00021722,2]
[385904591,1758125432701,-237.14540118,0.00021817,3]
[385904592,1758125432712,-237.14540118,0.00021817,3]
[385904593,1758125432722,-158.09693412,0.00021817,3]
[385904594,1758125432732,-159.36,0.00022665,2]
[385904595,1758125432741,-300.0,0.0002273,2]
[385904596,1758125432751,-2500.0,0.00022731,2]
[385904597,1758125432761,-330.02875136,0.00022731,2]
[385904598,1758125432773,-766.04438632,0.00022731,2]
[385904599,1758125432783,-250.0,0.00022731,2]
[385904600,1758125432793,-1091.9750397,0.00022856,2]
[385904601,1758125432809,-1408.0249603,0.00022856,2]
[385904602,1758125432820,-250.0,0.00022856,2]
[385904603,1758125432831,-1680.0,0.00022984,2]
[385904604,1758125432842,-150.0,0.00023474,2]
[385904605,1758125432852,-98.39782351,0.00023474,2]
[385904606,1758125432866,-51.60217649,0.00023474,2]
[385904607,1758125432876,-150.0,0.00023474,2]
[385904608,1758125432888,-150.0,0.00023474,2]
[385904609,1758125432898,-150.0,0.00023474,2]
[385904610,1758125432909,-150.0,0.00023474,2]
[385904611,1758125432918,-150.0,0.00023474,2]
[385904612,1758125432929,-150.0,0.00023909,4]
[385904613,1758125432938,-200.0,0.00024,2]
[385904614,1758125432947,-396.85,0.00024258,3]
[385904615,1758125432957,-5223.21,0.00024304,2]
[385904616,1758125432966,-150.0,0.00024343,4]
[385904617,1758125432975,-186.35,0.00024358,2]
[385904618,1758125432986,-159.36,0.00024456,2]
[385904619,1758125432995,-200.0,0.00024632,7]
[385904620,1758125433004,-200.0,0.00024649,2]
[385904621,1758125433013,-1000.0,0.00024658,2]
[385904622,1758125433023,-150.0,0.00024697,7]
[385904623,1758125433032,-290.31,0.00024729,2]
[385904624,1758125433042,-1145.4,0.00024764,2]
[385904625,1758125433052,-150.0,0.00024778,4]
[385904626,1758125433061,-150.0,0.00024778,4]
[385904627,1758125433070,-248.71531821,0.00024812,2]
[385904628,1758125433080,-342.43,0.00024898,2]
[385904629,1758125433089,-16482.05146211,0.000249,2]